fUSD/lending_fUSD_20250101
["ID","MTS","AMOUNT","RATE_DAILY","PERIOD"]
[347376980,1735746636171,-500.0,0.00010958,2]
[347376981,1735746636180,-500.0,0.00010958,2]
[347376982,1735746636190,-500.0,0.00010958,2]
[347376983,1735746636199,-500.0,0.00010958,2]
[347376984,1735746636208,-1609.31,0.00010958,2]
[347376985,1735746636217,-1034.25,0.00010958,2]
[347376986,1735746636227,-2680.88,0.00010958,2]
[347376987,1735746636236,-500.0,0.00010958,2]
[347376988,1735746636246,-500.0,0.00010958,2]
[347376989,1735746636255,-902.16,0.00010958,2]
[347376990,1735746636264,-500.0,0.00010958,2]
[347376991,1735746636274,-1021.89,0.00010958,2]
[347376992,1735746636283,-500.0,0.00010958,2]
[347376993,1735746636292,-1085.0,0.00010958,2]
[347376994,1735746636301,-500.0,0.00010958,2]
[347376995,1735746636311,-1378.09,0.00010958,2]
[347376996,1735746636320,-1323.0,0.00010958,2]
[347376997,1735746636330,-961.73,0.00010958,2]
[347376998,1735746636339,-1265.53,0.00010958,2]
[347376999,1735746636349,-2548.72,0.00010958,2]
[347377000,1735746636359,-1312.56,0.00010958,2]
[347377001,1735746636368,-951.79,0.00010958,2]
[347377002,1735746636378,-6775.02,0.00010958,2]
[347377003,1735746636387,-813.97,0.00010958,2]
[347377004,1735746636398,-503.72,0.00010958,2]
[347377005,1735746636411,-3240.93,0.00010958,2]
[347377006,1735746636421,-3824.5,0.00010958,2]
[347377007,1735746636430,-1103.16,0.00010958,2]
[347377008,1735746636440,-984.15,0.00010958,2]
[347377009,1735746636450,-1229.62,0.00010958,2]
[347377010,1735746636460,-672.26,0.00010958,2]
[347377011,1735746636470,-500.0,0.00010958,2]
[347377012,1735746636479,-2056.37,0.00010958,2]
[347377013,1735746636488,-1424.08,0.00010958,2]
[347377014,1735746636498,-500.0,0.00010958,2]
[347377015,1735746636508,-1738.35,0.00010958,2]
[347377016,1735746636518,-500.0,0.00010958,2]
[347377017,1735746636528,-572.42,0.00010958,2]
[347377018,1735746636537,-548.24,0.00010958,2]
[347377019,1735746636547,-500.0,0.00010958,2]
[347377020,1735746636557,-500.0,0.00010958,2]
[347377021,1735746636566,-1113.5,0.00010958,2]
[347377022,1735746636576,-500.0,0.00010958,2]
[347377023,1735746636587,-1524.4,0.00010958,2]
[347377024,1735746636596,-2836.31,0.00010958,2]
[347377025,1735746636606,-1065.12,0.00010958,2]
[347377026,1735746636615,-829.62,0.00010958,2]
[347377027,1735746636626,-524.62,0.00010958,2]
[347377028,1735746636635,-799.84,0.00010958,2]
[347377029,1735746636649,-500.0,0.00010958,2]
[347377030,1735746636668,-500.0,0.00010958,2]
[347377031,1735746636679,-500.0,0.00010958,2]
[347377032,1735746636693,-1405.42,0.00010958,2]
[347377033,1735746636705,-865.53,0.00010958,2]
[347377034,1735746636724,-500.0,0.00010958,2]
[347377035,1735746636744,-500.0,0.00010958,2]
[347377036,1735746636764,-911.93,0.00010958,2]
[347377037,1735746636786,-500.0,0.00010958,2]
[347377038,1735746636807,-1221.65,0.00010958,2]
[347377039,1735746636828,-500.0,0.00010958,2]
[347377040,1735746636848,-700.79,0.00010958,2]
[347377041,1735746636869,-1286.18,0.00010958,2]
[347377042,1735746636889,-948.04,0.00010958,2]
[347377043,1735746636913,-1306.62,0.00010958,2]
[347377044,1735746636933,-1200.82,0.00010958,2]
[347377045,1735746636954,-568.06,0.00010958,2]
[347377046,1735746636974,-500.0,0.00010958,2]
[347377047,1735746636995,-500.0,0.00010958,2]
[347377048,1735746637016,-500.0,0.00010958,2]
[347377049,1735746637036,-500.0,0.00010958,2]
[347377050,1735746637056,-630.04,0.00010958,2]
[347377051,1735746637076,-500.0,0.00010958,2]
[347377052,1735746637097,-500.0,0.00010958,2]
[347377053,1735746637118,-500.0,0.00010958,2]
[347377054,1735746637138,-1415.7,0.00010958,2]
[347377055,1735746637162,-500.0,0.00010958,2]
[347377056,1735746637183,-694.7,0.00010958,2]
[347377057,1735746637204,-500.0,0.00010958,2]
[347377058,1735746637225,-500.0,0.00010958,2]
[347377059,1735746637246,-609.88,0.00010958,2]
[347377060,1735746637266,-623.09,0.00010958,2]
[347377061,1735746637287,-500.0,0.00010958,2]
[347377062,1735746637309,-500.0,0.00010958,2]
[347377063,1735746637329,-500.0,0.00010958,2]
[347377064,1735746637351,-500.0,0.00010958,2]
[347377065,1735746637373,-815.24,0.00010958,2]
[347377066,1735746637394,-1025.65,0.00010958,2]
[347377067,1735746637418,-799.79,0.00010958,2]
[347377068,1735746637438,-500.0,0.00010958,2]
[347377069,1735746637458,-500.0,0.00010958,2]
[347377070,1735746637475,-500.0,0.00010958,2]
[347377071,1735746637495,-500.0,0.00010958,2]
[347377072,1735746637516,-500.0,0.00010958,2]
[347377073,1735746637537,-1473.64,0.00010958,2]
[347377074,1735746637557,-500.0,0.00010958,2]
[347377075,1735746637578,-500.0,0.00010958,2]
[347377076,1735746637590,-500.0,0.00010958,2]
[347377077,1735746637601,-500.0,0.00010958,2]
[347377078,1735746637611,-1338.1,0.00010958,2]
[347377079,1735746637620,-1248.57,0.00010958,2]
[347377080,1735746637632,-736.12,0.00010958,2]
[347377081,1735746637646,-590.23,0.00010958,2]
[347377082,1735746637661,-758.96,0.00010958,2]
[347377083,1735746637671,-1046.36,0.00010958,2]
[347377084,1735746637680,-489.12989798,0.00010958,2]
[347377085,1735746637690,-500.0,0.00010958,2]
[347377086,1735746637702,-907.1,0.00010958,2]
[347377087,1735746637711,-897.23,0.00010958,2]
[347377088,1735746637721,-500.0,0.00010958,2]
[347377089,1735746637731,-500.0,0.00010958,2]
[347377090,1735746637741,-500.0,0.00010958,2]
[347377091,1735746637752,-632.42,0.00010958,2]
[347377092,1735746637763,-752.19,0.00010958,2]
[347377093,1735746637772,-874.01,0.00010958,2]
[347377094,1735746637785,-1345.87,0.00010958,2]
[347377095,1735746637794,-500.0,0.00010958,2]
[347377096,1735746637804,-1011.66,0.00010958,2]
[347377097,1735746637815,-1368.32,0.00010958,2]
[347377098,1735746637824,-730.46,0.00010958,2]
[347377099,1735746637834,-500.0,0.00010958,2]
[347377100,1735746637843,-678.14,0.00010958,2]
[347377101,1735746637853,-1399.32,0.00010958,2]
[347377102,1735746637863,-500.0,0.00010958,2]
[347377103,1735746637872,-500.0,0.00010958,2]
[347377104,1735746637882,-500.0,0.00010958,2]
[347377105,1735746637891,-1503.07,0.00010958,2]
[347377106,1735746637901,-500.0,0.00010958,2]
[347377107,1735746637912,-955.82,0.00010958,2]
[347377108,1735746637921,-773.73,0.00010958,2]
[347377109,1735746637931,-649.88,0.00010958,2]
[347377110,1735746637940,-1678.54,0.00010958,2]
[347377111,1735746637953,-500.0,0.00010958,2]
[347377112,1735746637963,-4566.11,0.00010958,2]
[347377113,1735746637973,-500.0,0.00010958,2]
[347377114,1735746637982,-1577.57,0.00010958,2]
[347377115,1735746637991,-500.0,0.00010958,2]
[347377116,1735746638001,-545.37,0.00010958,2]
[347377117,1735746638011,-500.0,0.00010958,2]
[347377118,1735746638021,-695.16,0.00010958,2]
[347377119,1735746638030,-816.12,0.00010958,2]
[347377120,1735746638039,-1377.16,0.00010958,2]
[347377121,1735746638048,-500.0,0.00010958,2]
[347377122,1735746638057,-1065.89,0.00010958,2]
[347377123,1735746638067,-500.0,0.00010958,2]
[347377124,1735746638078,-500.0,0.00010958,2]
[347377125,1735746638087,-2233.57,0.00010958,2]
[347377126,1735746638097,-726.14,0.00010958,2]
[347377127,1735746638107,-682.64,0.00010958,2]
[347377128,1735746638118,-884.88,0.00010958,2]
[347377129,1735746638127,-500.0,0.00010958,2]
[347377131,1735746638136,-1274.63,0.00010958,2]
[347377132,1735746638146,-567.99151262,0.00010958,2]
[347377133,1735746638159,-1070.27,0.00010958,2]
[347377134,1735746638168,-500.0,0.00010958,2]
[347377135,1735746638178,-862.23,0.00010958,2]
[347377136,1735746638188,-1700.1,0.00010958,2]
[347377137,1735746638198,-535.63,0.00010958,2]
[347377138,1735746638207,-500.0,0.00010958,2]
[347377139,1735746638217,-500.0,0.00010958,2]
[347377140,1735746638226,-500.0,0.00010958,2]
[347377141,1735746638236,-665.02,0.00010958,2]
[347377142,1735746638246,-1092.17,0.00010958,2]
[347377143,1735746638255,-1655.44,0.00010958,2]
[347377144,1735746638264,-500.0,0.00010958,2]
[347377145,1735746638274,-2970.42,0.00010958,2]
[347377146,1735746638283,-1555.68,0.00010958,2]
[347377147,1735746638293,-540.79,0.00010958,2]
[347377148,1735746638302,-1700.9,0.00010958,2]
[347377149,1735746638312,-1515.99,0.00010958,2]
[347377150,1735746638321,-624.56,0.00010958,2]
[347377151,1735746638331,-924.44,0.00010958,2]
[347377152,1735746638341,-721.54,0.00010958,2]
[347377153,1735746638350,-150.96964171,0.00010958,2]
[347377154,1735746638360,-1091.11,0.00010958,2]
[347377155,1735746638369,-500.0,0.00010958,2]
[347377156,1735746638378,-992.56,0.00010958,2]
[347377157,1735746638388,-650.75,0.00010958,2]
[347377158,1735746638398,-500.0,0.00010958,2]
[347377159,1735746638410,-1814.67,0.00010958,2]
[347377160,1735746638419,-500.0,0.00010958,2]
[347377161,1735746638428,-500.0,0.00010958,2]
[347377162,1735746638438,-585.95,0.00010958,2]
[347377163,1735746638447,-932.26,0.00010958,2]
[347377164,1735746638457,-1237.01,0.00010958,2]
[347377165,1735746638466,-1144.59,0.00010958,2]
[347377166,1735746638475,-8096.22,0.00010958,2]
[347377167,1735746638484,-500.0,0.00010958,2]
[347377168,1735746638494,-1674.27,0.00010958,2]
[347377169,1735746638503,-1644.79,0.00010958,2]
[347377170,1735746638513,-500.0,0.00010958,2]
[347377171,1735746638522,-500.0,0.00010958,2]
[347377172,1735746638531,-1854.98,0.00010958,2]
[347377173,1735746638541,-933.48,0.00010958,2]
[347377174,1735746638551,-721.44,0.00010958,2]
[347377175,1735746638560,-500.0,0.00010958,2]
[347377176,1735746638569,-500.0,0.00010958,2]
[347377177,1735746638579,-1801.64,0.00010958,2]
[347377178,1735746638588,-500.0,0.00010958,2]
[347377179,1735746638597,-500.0,0.00010958,2]
[347377180,1735746638607,-500.0,0.00010958,2]
[347377181,1735746638616,-500.0,0.00010958,2]
[347377182,1735746638626,-596.78,0.00010958,2]
[347377184,1735746638637,-2463.74,0.00010958,2]
[347377186,1735746638647,-500.0,0.00010958,2]
[347377188,1735746638657,-1232.16,0.00010958,2]
[347377190,1735746638667,-644.68,0.00010958,2]
[347377192,1735746638676,-1072.8,0.00010958,2]
[347377194,1735746638685,-930.16,0.00010958,2]
[347377196,1735746638694,-500.0,0.00010958,2]
[347377198,1735746638704,-500.0,0.00010958,2]
[347377200,1735746638714,-1083.78,0.00010958,2]
[347377202,1735746638723,-1567.48,0.00010958,2]
[347377205,1735746638733,-500.0,0.00010958,2]
[347377207,1735746638742,-1581.11,0.00010958,2]
[347377209,1735746638752,-500.0,0.00010958,2]
[347377211,1735746638761,-752.81,0.00010958,2]
[347377213,1735746638771,-966.56,0.00010958,2]
[347377215,1735746638781,-500.0,0.00010958,2]
[347377217,1735746638790,-660.85,0.00010958,2]
[347377219,1735746638800,-21997.1,0.00010958,2]
[347377221,1735746638809,-626.28,0.00010958,2]
[347377223,1735746638818,-500.0,0.00010958,2]
[347377225,1735746638828,-884.67,0.00010958,2]
[347377227,1735746638837,-565.32,0.00010958,2]
[347377229,1735746638847,-839.06,0.00010958,2]
[347377231,1735746638856,-518.26,0.00010958,2]
[347377233,1735746638865,-500.0,0.00010958,2]
[347377235,1735746638875,-1877.0,0.00010958,2]
[347377237,1735746638884,-791.43382079,0.00010958,2]
[347377239,1735746638893,-500.0,0.00010958,2]
[347377241,1735746638903,-163.51487932,0.00010958,2]
[347377243,1735746638913,-500.0,0.00010958,2]
[347377245,1735746638922,-500.0,0.00010958,2]
[347377247,1735746638932,-2162.71,0.00010958,2]
[347377250,1735746638941,-500.0,0.00010958,2]
[347377252,1735746638951,-540.95,0.00010958,2]
[347377254,1735746638960,-500.0,0.00010958,2]
[347377256,1735746638970,-8078.64,0.00010958,2]
[347377258,1735746638979,-632.2,0.00010958,2]
[347377259,1735746638988,-500.0,0.00010958,2]
[347377261,1735746638997,-500.0,0.00010958,2]
[347377262,1735746639006,-1267.81,0.00010958,2]
[347377263,1735746639016,-500.0,0.00010958,2]
[347377264,1735746639025,-1294.86,0.00010958,2]
[347377265,1735746639035,-500.0,0.00010958,2]
[347377266,1735746639045,-558.58,0.00010958,2]
[347377267,1735746639054,-764.25,0.00010958,2]
[347377268,1735746639064,-500.0,0.00010958,2]
[347377269,1735746639074,-500.0,0.00010958,2]
[347377270,1735746639087,-561.16,0.00010958,2]
[347377271,1735746639096,-1059.37,0.00010958,2]
[347377273,1735746639106,-500.0,0.00010958,2]
[347377274,1735746639115,-500.0,0.00010958,2]
[347377276,1735746639124,-500.0,0.00010958,2]
[347377278,1735746639133,-500.0,0.00010958,2]
[347377280,1735746639142,-958.87,0.00010958,2]
[347377282,1735746639152,-500.0,0.00010958,2]
[347377284,1735746639163,-516.95,0.00010958,2]
[347377286,1735746639172,-3598.36,0.00010958,2]
[347377288,1735746639181,-3184.52,0.00010958,2]
[347377290,1735746639190,-1822.17,0.00010958,2]
[347377292,1735746639201,-500.0,0.00010958,2]
[347377294,1735746639210,-500.0,0.00010958,2]
[347377296,1735746639219,-500.0,0.00010958,2]
[347377298,1735746639228,-691.63,0.00010958,2]
[347377300,1735746639237,-1254.05,0.00010958,2]
[347377302,1735746639247,-1041.11,0.00010958,2]
[347377304,1735746639257,-1772.09,0.00010958,2]
[347377306,1735746639266,-500.0,0.00010958,2]
[347377308,1735746639275,-1179.99,0.00010958,2]
[347377310,1735746639285,-645.44,0.00010958,2]
[347377312,1735746639294,-286.76359041,0.00010958,2]
[347377314,1735746639303,-847.44,0.00010958,2]
[347377316,1735746639311,-500.0,0.00010958,2]
[347377318,1735746639320,-500.0,0.00010958,2]
[347377320,1735746639329,-500.0,0.00010958,2]
[347377322,1735746639338,-603.27,0.00010958,2]
[347377324,1735746639348,-500.0,0.00010958,2]
[347377326,1735746639357,-729.26,0.00010958,2]
[347377327,1735746639366,-509.43,0.00010958,2]
[347377330,1735746639376,-500.0,0.00010958,2]
[347377331,1735746639385,-843.81,0.00010958,2]
[347377333,1735746639395,-500.0,0.00010958,2]
[347377335,1735746639404,-500.0,0.00010958,2]
[347377337,1735746639415,-500.0,0.00010958,2]
[347377339,1735746639424,-1246.99,0.00010958,2]
[347377341,1735746639434,-500.0,0.00010958,2]
[347377344,1735746639443,-1365.35,0.00010958,2]
[347377345,1735746639452,-2730.29,0.00010958,2]
[347377347,1735746639461,-2962.05,0.00010958,2]
[347377349,1735746639471,-500.0,0.00010958,2]
[347377351,1735746639480,-747.28,0.00010958,2]
[347377353,1735746639490,-500.0,0.00010958,2]
[347377355,1735746639499,-500.0,0.00010958,2]
[347377357,1735746639508,-1121.39,0.00010958,2]
[347377359,1735746639517,-526.21,0.00010958,2]
[347377361,1735746639526,-1171.97,0.00010958,2]
[347377363,1735746639535,-1645.54,0.00010958,2]
[347377365,1735746639545,-2328.36,0.00010958,2]
[347377367,1735746639554,-500.0,0.00010958,2]
[347377369,1735746639563,-500.0,0.00010958,2]
[347377394,1735746639794,-500.0,0.00010958,2]
[347377396,1735746639805,-1471.76,0.00010958,2]
[347377398,1735746639814,-500.0,0.00010958,2]
[347377400,1735746639823,-1078.25,0.00010958,2]
[347377402,1735746639832,-559.52,0.00010958,2]
[347377404,1735746639843,-6020.61,0.00010958,2]
[347377406,1735746639852,-679.19,0.00010958,2]
[347377408,1735746639862,-626.83,0.00010958,2]
[347377410,1735746639872,-512.16,0.00010958,2]
[347377412,1735746639882,-680.24,0.00010958,2]
[347377415,1735746639892,-500.0,0.00010958,2]
[347377417,1735746639901,-1023.06,0.00010958,2]
[347377419,1735746639912,-2785.44,0.00010958,2]
[347377420,1735746639921,-527.0,0.00010958,2]
[347377422,1735746639931,-663.4,0.00010958,2]
[347377425,1735746639941,-875.58,0.00010958,2]
[347377426,1735746639951,-500.0,0.00010958,2]
[347377429,1735746639962,-1323.62,0.00010958,2]
[347377430,1735746639971,-500.0,0.00010958,2]
[347377432,1735746639981,-500.0,0.00010958,2]
[347377434,1735746639991,-820.55,0.00010958,2]
[347377436,1735746640001,-1629.12,0.00010958,2]
[347377439,1735746640011,-500.0,0.00010958,2]
[347377440,1735746640020,-500.0,0.00010958,2]
[347377443,1735746640030,-500.0,0.00010958,2]
[347377444,1735746640039,-500.0,0.00010958,2]
[347377446,1735746640048,-500.0,0.00010958,2]
[347377448,1735746640058,-500.0,0.00010958,2]
[347377450,1735746640068,-3478.81,0.00010958,2]
[347377452,1735746640080,-500.0,0.00010958,2]
[347377454,1735746640089,-500.0,0.00010958,2]
[347377456,1735746640099,-527.63,0.00010958,2]
[347377458,1735746640109,-500.0,0.00010958,2]
[347377460,1735746640120,-1658.45,0.00010958,2]
[347377463,1735746640129,-700.96,0.00010958,2]
[347377466,1735746640138,-2353.46,0.00010958,2]
[347377468,1735746640148,-500.0,0.00010958,2]
[347377470,1735746640159,-1407.83,0.00010958,2]
[347377472,1735746640169,-1728.71,0.00010958,2]
[347377474,1735746640179,-500.0,0.00010958,2]
[347377476,1735746640189,-673.16,0.00010958,2]
[347377478,1735746640198,-4188.73,0.00010958,2]
[347377480,1735746640208,-1517.22,0.00010958,2]
[347377482,1735746640219,-1310.69,0.00010958,2]
[347377484,1735746640228,-500.0,0.00010958,2]
[347377486,1735746640238,-500.0,0.00010958,2]
[347377488,1735746640248,-3104.71,0.00010958,2]
[347377490,1735746640258,-1104.8,0.00010958,2]
[347377492,1735746640267,-825.82,0.00010958,2]
[347377494,1735746640277,-4938.9,0.00010958,2]
[347377496,1735746640286,-500.0,0.00010958,2]
[347377498,1735746640296,-500.0,0.00010958,2]
[347377500,1735746640306,-3067.25,0.00010958,2]
[347377502,1735746640316,-500.0,0.00010958,2]
[347377504,1735746640326,-500.0,0.00010958,2]
[347377506,1735746640336,-1345.09,0.00010958,2]
[347377508,1735746640345,-500.0,0.00010958,2]
[347377510,1735746640355,-500.0,0.00010958,2]
[347377513,1735746640365,-500.0,0.00010958,2]
[347377515,1735746640375,-1880.88,0.00010958,2]
[347377517,1735746640384,-500.0,0.00010958,2]
[347377519,1735746640394,-1843.92,0.00010958,2]
[347377521,1735746640403,-831.91,0.00010958,2]
[347377523,1735746640418,-2706.44,0.00010958,2]
[347377524,1735746640427,-500.0,0.00010958,2]
[347377526,1735746640437,-1254.49,0.00010958,2]
[347377529,1735746640447,-500.0,0.00010958,2]
[347377530,1735746640456,-500.0,0.00010958,2]
[347377532,1735746640466,-4090.1,0.00010958,2]
[347377534,1735746640475,-500.0,0.00010958,2]
[347377536,1735746640484,-500.0,0.00010958,2]
[347377538,1735746640494,-530.78,0.00010958,2]
[347377540,1735746640504,-1118.86,0.00010958,2]
[347377542,1735746640513,-5709.96,0.00010958,2]
[347377544,1735746640523,-873.37,0.00010958,2]
[347377546,1735746640533,-952.7,0.00010958,2]
[347377548,1735746640543,-1113.59,0.00010958,2]
[347377550,1735746640552,-1556.43,0.00010958,2]
[347377552,1735746640562,-500.0,0.00010958,2]
[347377554,1735746640571,-1047.74,0.00010958,2]
[347377556,1735746640581,-1638.11,0.00010958,2]
[347377558,1735746640591,-947.87,0.00010958,2]
[347377560,1735746640601,-500.0,0.00010958,2]
[347377562,1735746640610,-1507.95,0.00010958,2]
[347377564,1735746640620,-500.0,0.00010958,2]
[347377566,1735746640630,-1778.39,0.00010958,2]
[347377568,1735746640640,-736.54,0.00010958,2]
[347377570,1735746640651,-500.0,0.00010958,2]
[347377572,1735746640663,-500.0,0.00010958,2]
[347377574,1735746640673,-1063.2,0.00010958,2]
[347377576,1735746640682,-1337.51,0.00010958,2]
[347377578,1735746640692,-500.0,0.00010958,2]
[347377580,1735746640702,-500.0,0.00010958,2]
[347377582,1735746640712,-691.41,0.00010958,2]
[347377583,1735746640722,-776.56,0.00010958,2]
[347377584,1735746640731,-625.82,0.00010958,2]
[347377585,1735746640741,-1469.5,0.00010958,2]
[347377586,1735746640751,-500.83,0.00010958,2]
[347377587,1735746640760,-991.0,0.00010958,2]
[347377588,1735746640770,-839.28,0.00010958,2]
[347377589,1735746640779,-747.53,0.00010958,2]
[347377590,1735746640788,-10349.57,0.00010958,2]
[347377591,1735746640798,-500.0,0.00010958,2]
[347377592,1735746640807,-500.0,0.00010958,2]
[347377594,1735746640817,-615.79,0.00010958,2]
[347377596,1735746640826,-1510.14,0.00010958,2]
[347377598,1735746640836,-1942.31,0.00010958,2]
[347377601,1735746640846,-500.0,0.00010958,2]
[347377603,1735746640855,-500.0,0.00010958,2]
[347377605,1735746640864,-500.0,0.00010958,2]
[347377606,1735746640873,-500.0,0.00010958,2]
[347377608,1735746640883,-3444.75,0.00010958,2]
[347377610,1735746640892,-500.0,0.00010958,2]
[347377612,1735746640902,-500.0,0.00010958,2]
[347377615,1735746640913,-988.66,0.00010958,2]
[347377617,1735746640923,-1792.47,0.00010958,2]
[347377619,1735746640932,-500.0,0.00010958,2]
[347377621,1735746640942,-500.0,0.00010958,2]
[347377623,1735746640951,-3869.16,0.00010958,2]
[347377625,1735746640961,-1434.7,0.00010958,2]
[347377627,1735746640971,-500.0,0.00010958,2]
[347377629,1735746640980,-500.0,0.00010958,2]
[347377631,1735746640990,-500.0,0.00010958,2]
[347377633,1735746641000,-845.4,0.00010958,2]
[347377635,1735746641009,-922.01,0.00010958,2]
[347377637,1735746641019,-500.0,0.00010958,2]
[347377639,1735746641029,-500.0,0.00010958,2]
[347377641,1735746641038,-577.18,0.00010958,2]
[347377643,1735746641047,-500.0,0.00010958,2]
[347377645,1735746641057,-566.31,0.00010958,2]
[347377647,1735746641066,-500.0,0.00010958,2]
[347377649,1735746641077,-500.0,0.00010958,2]
[347377651,1735746641088,-1149.27,0.00010958,2]
[347377653,1735746641098,-500.0,0.00010958,2]
[347377655,1735746641108,-500.0,0.00010958,2]
[347377657,1735746641119,-7211.49,0.00010958,2]
[347377659,1735746641128,-1792.79,0.00010958,2]
[347377661,1735746641138,-3132.7,0.00010958,2]
[347377663,1735746641147,-4001.28,0.00010958,2]
[347377665,1735746641160,-291.06805161,0.00010958,2]
[347377667,1735746641169,-500.0,0.00010958,2]
[347377669,1735746641180,-4091.51,0.00010958,2]
[347377671,1735746641189,-2064.37,0.00010958,2]
[347377673,1735746641198,-500.0,0.00010958,2]
[347377675,1735746641208,-1335.76,0.00010958,2]
[347377677,1735746641217,-2966.44,0.00010958,2]
[347377679,1735746641227,-1058.51,0.00010958,2]
[347377681,1735746641236,-950.12,0.00010958,2]
[347377683,1735746641247,-500.0,0.00010958,2]
[347377685,1735746641256,-2070.91,0.00010958,2]
[347377687,1735746641265,-1144.65,0.00010958,2]
[347377689,1735746641275,-527.32,0.00010958,2]
[347377691,1735746641285,-500.0,0.00010958,2]
[347377693,1735746641294,-9528.64,0.00010958,2]
[347377695,1735746641303,-723.45,0.00010958,2]
[347377697,1735746641313,-603.33,0.00010958,2]
[347377699,1735746641323,-12005.36,0.00010958,2]
[347377701,1735746641332,-852.69,0.00010958,2]
[347377703,1735746641341,-2223.95,0.00010958,2]
[347377705,1735746641351,-1716.19,0.00010958,2]
[347377707,1735746641360,-1236.37,0.00010958,2]
[347377709,1735746641369,-890.1,0.00010958,2]
[347377711,1735746641378,-500.0,0.00010958,2]
[347377713,1735746641388,-500.0,0.00010958,2]
[347377715,1735746641397,-1210.96,0.00010958,2]
[347377717,1735746641406,-500.0,0.00010958,2]
[347377719,1735746641416,-1664.56,0.00010958,2]
[347377721,1735746641426,-500.0,0.00010958,2]
[347377723,1735746641435,-500.0,0.00010958,2]
[347377725,1735746641444,-8804.14,0.00010958,2]
[347377727,1735746641453,-1292.7,0.00010958,2]
[347377729,1735746641463,-1412.04,0.00010958,2]
[347377731,1735746641472,-6444.61,0.00010958,2]
[347377733,1735746641481,-750.41,0.00010958,2]
[347377735,1735746641491,-3513.59,0.00010958,2]
[347377737,1735746641500,-500.0,0.00010958,2]
[347377739,1735746641509,-500.0,0.00010958,2]
[347377741,1735746641519,-1932.52,0.00010958,2]
[347377743,1735746641528,-500.0,0.00010958,2]
[347377745,1735746641537,-2051.88,0.00010958,2]
[347377747,1735746641547,-500.0,0.00010958,2]
[347377749,1735746641556,-786.33,0.00010958,2]
[347377751,1735746641565,-1332.32,0.00010958,2]
[347377753,1735746641574,-5081.58,0.00010958,2]
[347377755,1735746641584,-500.0,0.00010958,2]
[347377757,1735746641593,-500.0,0.00010958,2]
[347377759,1735746641603,-500.0,0.00010958,2]
[347377761,1735746641612,-500.0,0.00010958,2]
[347377763,1735746641621,-4084.59,0.00010958,2]
[347377765,1735746641630,-1499.18,0.00010958,2]
[347377767,1735746641640,-2197.36,0.00010958,2]
[347377769,1735746641649,-1812.1,0.00010958,2]
[347377771,1735746641659,-4753.98,0.00010958,2]
[347377773,1735746641669,-1153.19,0.00010958,2]
[347377775,1735746641678,-500.0,0.00010958,2]
[347377777,1735746641688,-1413.58,0.00010958,2]
[347377779,1735746641697,-500.0,0.00010958,2]
[347377781,1735746641707,-3903.16,0.00010958,2]
[347377782,1735746641716,-500.0,0.00010958,2]